Cogmind - Beta 16 @@@ ROGUE MODE // 2026.01.14 @ 19:16:21 Player: Lazz Result: Destroyed by X-72 Disruptor with Improved Arc Projector Performance ------------- Evolutions (4) 2000 Regions Visited (6) 1200 Robots Destroyed (71) 355 Value Destroyed (2192) 2192 Prototype IDs (0) 0 Alien Tech Used (0) 0 Bonus (571) 571 TOTAL SCORE: 6318 Bonus ------- High Alert Combat Kills 71 Entered DSFs 500 Cogmind --------- Core Integrity 0/850 Matter 89/300 Energy 97/100 System Corruption 5% Temperature Hot (214) Movement Core (700) Ox13 Location -6/Factory Parts ------- > --- POWER (2) -------- (None) > --- PROPULSION (5) --- (None) > --- UTILITY (4) ------ High-capacity Storage Unit Hacking Suite > --- WEAPON (4) ------- (None) > --- INVENTORY (20) --- Improved Deuterium Engine Improved Deuterium Engine High-capacity Battery (250) Small Matter Pod (50) Improved Signal Interpreter Improved Terrain Scanner Improved Light Armor Plating Hacking Suite Gauss Rifle Gauss Rifle Coil Gun Peak State ------------ > --- POWER ------------ Improved Deuterium Engine Light Angular Momentum Engine > --- PROPULSION ------- VSS Leg VSS Leg Flexi-carbon Leg Flexi-carbon Leg Flexi-carbon Leg > --- UTILITY ---------- Improved Heat Sink High-capacity Storage Unit Hacking Suite Hacking Suite > --- WEAPON ----------- Coil Gun Coil Gun Coil Gun Coil Gun > --- INVENTORY -------- Deuterium Engine Improved Deuterium Engine Carbon-fiber Leg VSS Leg VSS Leg Wheel Wheel High-capacity Battery Small Matter Pod Improved Signal Interpreter Improved Terrain Scanner Improved Light Armor Plating Reactive Plating Hacking Suite Gauss Rifle Gauss Rifle Coil Gun Coil Gun Coil Gun Mini Grenade Launcher [Rating: 66] Favorites ----------- Power Deuterium Engine Engine Deuterium Engine Propulsion Wheel Leg VSS Leg Wheel Wheel Utility High-capacity Storage Unit Device Improved Heat Sink Storage High-capacity Storage Unit Hackware Hacking Suite Protection Reactive Plating Weapon Coil Gun Energy Gun Medium Laser Ballistic Gun Coil Gun Launcher Mini Grenade Launcher Build | -11 -10 -9 -8 -7 -7 -6 ------- Run | Yrd Mat Mat Mat Fac DSF Fac Slots Evolved 8 | . . 2 2 2 . 2 Power 1 | . . . . . . 1 Propulsion 3 | . . 2 . . . 1 Utility 2 | . . . 1 1 . . Weapon 2 | . . . 1 1 . . Parts Attached 52 | 6 1 9 7 5 8 16 Power 8 | 1 . 1 1 . 1 4 Engine 8 | 1 . 1 1 . 1 4 Core . | . . . . . . . Reactor . | . . . . . . . Propulsion 19 | 2 . 5 1 4 2 5 Treads . | . . . . . . . Leg 11 | . . . . 4 2 5 Wheel 8 | 2 . 5 1 . . . Hover . | . . . . . . . Flight . | . . . . . . . Utility 11 | 1 1 2 2 1 2 2 Device 1 | . . . 1 . . . Storage 3 | 1 1 1 . . . . Processor . | . . . . . . . Hackware 2 | . . . . . . 2 Protection 5 | . . 1 1 1 2 . Artifact . | . . . . . . . Weapon 14 | 2 . 1 3 . 3 5 Energy Gun 1 | 1 . . . . . . Energy Cannon . | . . . . . . . Ballistic Gun 12 | 1 . 1 2 . 3 5 Ballistic Cannon . | . . . . . . . Launcher 1 | . . . 1 . . . Special Weapon . | . . . . . . . Impact Weapon . | . . . . . . . Slashing Weapon . | . . . . . . . Piercing Weapon . | . . . . . . . Special Melee Weapon . | . . . . . . . Unidentified Prototypes . | . . . . . . . Parts Lost 34 | . . 2 4 . 4 24 Power 3 | . . . . . . 3 Propulsion 16 | . . 2 3 . 1 10 Utility 5 | . . . . . 2 3 Weapon 10 | . . . 1 . 1 8 Highest Loss Streak 22 | . . 2 3 . 2 22 To Critical Strikes . | . . . . . . . Average Backups 15 | 3 7 15 16 16 16 18 Power 1 | . . 2 3 3 2 1 Propulsion 3 | 1 4 5 4 3 3 3 Utility 6 | . 2 5 7 8 7 6 Weapon 3 | 1 1 2 2 1 2 5 Tool/Special . | . . . . . . . Unused Backups 17 | . . 3 1 . . 13 Power 4 | . . . . . . 4 Propulsion . | . . . . . . . Utility 9 | . . 2 1 . . 6 Weapon 4 | . . 1 . . . 3 Tool/Special . | . . . . . . . Average Slot Usage (%) 95 | . 98 95 94 80 92 96 Engine 10 | . 14 11 9 7 4 12 Leg 16 | . . . . 18 29 32 Wheel 16 | . 28 39 32 7 . . Device 4 | . . . 4 7 7 5 Storage 11 | . 26 21 9 7 7 6 Hackware 1 | . . . . . . 2 Protection 8 | . . . 11 11 11 9 Energy Gun 4 | . 14 11 5 3 2 . Ballistic Gun 19 | . 14 11 18 15 22 22 Launcher 1 | . . . 1 . 4 2 Peak Build Rating 66 | 6 8 16 23 31 46 66 Average Rating 33 | 5 7 13 20 27 35 57 On Entrance 17 | . 6 8 15 19 31 46 Avg Prop Armor Cover (%) 17 | . . . . . . 17 Naked Turns . | . . . . . . . Heaviest Build 92 | 12 52 63 68 74 78 92 Greatest Support 84 | 20 20 40 40 51 51 84 Greatest Overweight (x) 16 | 1 2 2 3 1 1 16 Average Overweight (x) 1 | . 1 1 1 1 1 . Largest Inventory Capacity 20 | 8 20 20 20 20 20 20 Average Capacity 19 | 7 18 20 20 20 20 20 Most Carried 20 | 7 8 20 20 20 20 20 Average Carried 16 | 3 7 17 18 17 16 18 Final Capacity 20 | 8 20 20 20 20 20 20 Final Carried 20 | 7 8 17 20 16 19 11 Class Distribution -------------------- 37% | Tank 30% | Mutant 25% | Scavenger-Tank 6% | Hacker-Gunner Dominant Class ---------------- Mutant | -10/Materials Mutant | -9/Materials Scavenger-Tank | -8/Materials Scavenger-Tank | -7/Factory Tank | -7/DSF Tank | -6/Factory Resources | -11 -10 -9 -8 -7 -7 -6 ----------- Run | Yrd Mat Mat Mat Fac DSF Fac Matter Collected 1722 | 349 36 110 216 . 181 830 Remotely . | . . . . . . . Salvage Created 3035 | 238 76 312 246 . 460 1703 Parts 157 | 24 4 21 19 . 18 71 Haulers Intercepted . | . . . . . . . Recyclers Shooed 6 | . . . . . . 6 Parts Field Recycled . | . . . . . . . Retrieved Matter . | . . . . . . . Parts Self-Destructed . | . . . . . . . Prevented . | . . . . . . . Parts Restored . | . . . . . . . Kills | -11 -10 -9 -8 -7 -7 -6 ------- Run | Yrd Mat Mat Mat Fac DSF Fac Combat Hostiles Destroyed 43 | . 2 8 6 . 8 19 Guns 34 | . 2 8 4 . 5 15 AOE 9 | . . . 2 . 3 4 Classes Destroyed 13 | 3 1 4 . . 3 2 Worker 10 | 2 . . 5 . . 3 Builder 3 | . . 1 . . . 2 Tunneler 5 | 4 . . . . . 1 Recycler 6 | 1 . . . . . 5 Operator 1 | . . . . . . 1 Watcher 3 | . . 1 . . . 2 Swarmer 9 | . . 3 3 . . 3 Grunt 19 | . 2 4 2 . 3 8 Sentry 2 | . . 1 1 . . . Specialist 5 | . . . . . 3 2 Hunter 5 | . . . . . 1 4 Programmer 1 | . . . . . . 1 Heavy 2 | . . . . . 1 1 Best Kill Streak 13 | 3 2 6 4 . 3 13 Combat Bots Only 6 | . 2 4 3 . 3 6 Max Kills in Single Turn 5 | 1 1 1 3 . 2 5 Gunslinging 1 | . . . . . . 1 Exploded 2 | . . . 2 . 1 2 Melee . | . . . . . . . Uniques/NPCs Destroyed . | . . . . . . . Combat | -11 -10 -9 -8 -7 -7 -6 -------- Run | Yrd Mat Mat Mat Fac DSF Fac Hostile Shots Fired 419 | . 15 44 27 . 33 300 Missed 138 | . 7 13 6 . 11 101 Hits 281 | . 8 31 21 . 22 199 Projectile 281 | . 8 31 21 . 22 199 Critical Strikes 9 | . . . . . 4 5 Part Disruptions 2 | . . . . . . 2 Damage Taken 5142 | . 111 307 512 . 558 3654 Core 1029 | . 48 33 68 . 17 863 Absorbed by Shields . | . . . . . . . Ignored by Resistances 450 | . . . 102 . 109 239 Core Remaining (%) 91 | 100 80 91 87 . 97 . Volleys Fired 121 | 13 9 24 16 . 13 46 Largest 4 | 2 2 2 3 . 4 4 Hottest 120 | 70 70 70 90 . 118 120 Shots Fired 351 | 26 18 48 42 . 49 168 Gun 334 | 26 18 48 39 . 39 164 Cannon . | . . . . . . . Launcher 17 | . . . 3 . 10 4 Special . | . . . . . . . Kinetic 274 | 13 9 24 26 . 38 164 Thermal 60 | 13 9 24 13 . 1 . Explosive 17 | . . . 3 . 10 4 Electromagnetic . | . . . . . . . Robot Hit Streak 14 | 4 8 10 9 . 14 8 Robot Miss Streak 6 | 2 3 3 2 . 4 6 Penetration Max 1 | . . . . . . 1 Secondary Targets 6 | . 1 . 1 . . 4 Max Gunslinging Chain 1 | . 1 . 1 . . 1 Shots Hit Robots 207 | 13 13 35 23 . 35 88 Core Hits 130 | 8 5 15 14 . 26 62 Critical Kills 2 | . . . . . . 2 Critical Parts Destroyed 3 | . . . . . . 3 Critical Strikes 9 | . 1 1 2 . . 5 Burn 4 | . 1 1 2 . . . Destroy 5 | . . . . . . 5 Melee Attacks . | . . . . . . . Impact . | . . . . . . . Slashing . | . . . . . . . Piercing . | . . . . . . . Sneak Attacks . | . . . . . . . Combat Hostiles . | . . . . . . . Follow-up Attacks . | . . . . . . . Damage Inflicted 5626 | 162 164 427 462 . 965 3446 Guns 3768 | 162 164 427 265 . 464 2286 Cannons . | . . . . . . . Explosions 1831 | . . . 197 . 501 1133 Melee . | . . . . . . . Ramming 27 | . . . . . . 27 Kinetic 3243 | 61 76 203 165 . 452 2286 Thermal 1102 | 101 88 224 100 . 12 577 Explosive 1254 | . . . 197 . 501 556 Electromagnetic . | . . . . . . . Impact . | . . . . . . . Slashing . | . . . . . . . Piercing . | . . . . . . . Highest Corruption 5 | . 2 . . . . 5 Average Corruption 2 | . 2 . . . . 3 Corruption Purged . | . . . . . . . Corruption Blocked . | . . . . . . . Effects 2 | . 1 . . . . 1 Heat Flow Errors 2 | . 1 . . . . 1 Overload Shots . | . . . . . . . Overflow Damage 219 | . . . 6 . . 213 Projectiles . | . . . . . . . Explosions 219 | . . . 6 . . 213 Melee . | . . . . . . . Knockbacks . | . . . . . . . Impact . | . . . . . . . Kinetic . | . . . . . . . Secondary . | . . . . . . . Self-Inflicted Damage 74 | . . . 23 . . 51 Shots 3 | . . . 1 . . 2 Rammed . | . . . . . . . Targets Rammed 2 | . . . . . . 2 Kicked 2 | . . . . . . 2 Crushed . | . . . . . . . Highest Temperature 203 | 72 203 78 100 . . 196 Average Temperature 29 | 27 79 25 36 . . 14 Received Heat Transfer 885 | . 63 102 36 . 90 594 Siege Activations . | . . . . . . . Martial Activations . | . . . . . . . Shielding Activations . | . . . . . . . Robots Disrupted . | . . . . . . . Combat Hostiles . | . . . . . . . Robots Corrupted . | . . . . . . . Combat Hostiles . | . . . . . . . Parts Fried . | . . . . . . . Impact Corruptions . | . . . . . . . Robots Melted . | . . . . . . . Combat Hostiles . | . . . . . . . Parts Melted 1 | 1 . . . . . . Heat Transferred 2400 | 296 333 740 444 . 37 550 Parts Sabotaged . | . . . . . . . Parts Stolen . | . . . . . . . Parts Stripped . | . . . . . . . Power Chain Reactions . | . . . . . . . Alert | -11 -10 -9 -8 -7 -7 -6 ------- Run | Yrd Mat Mat Mat Fac DSF Fac Maximum Alert Level 2 | . . . . . 1 2 Low Security (%) 91 | 100 100 100 100 100 76 83 Level 1 7 | . . . . . 23 12 Level 2 1 | . . . . . . 4 Level 3 . | . . . . . . . Level 4 . | . . . . . . . Level 5 . | . . . . . . . High Security . | . . . . . . . Max Security . | . . . . . . . Sterilizations 1 | . . . . . 1 . Peak Influence 446 | 15 50 123 71 7 200 446 Initial 105 | . . . 39 7 4 105 Average 72 | 3 17 53 21 7 110 122 Influence Increases 1545 | 35 80 223 209 . 236 762 Destroy 0b10 Robot/C 860 | . 40 160 120 . 160 380 Destroy 0b10 Robot/NC 155 | 35 . 10 25 . 15 70 Destroy Leader 176 | . 10 22 30 . 30 84 Select Force Hacks 30 | . . 30 . . . . Disable Machine 150 | . . . . . . 150 Destroy Structure 129 | . . 1 34 . 31 63 Lose Combat Pursuer 45 | . 30 . . . . 15 Influence Decreases 1245 | 35 80 130 285 10 43 662 Entered New Map 162 | . . . 54 10 3 95 Time Decay 704 | 35 80 110 152 . . 327 Lost Part 340 | . . 20 40 . 40 240 Purge Threat 39 | . . . 39 . . . Squads Dispatched 16 | . 1 2 1 . 2 10 Investigation 4 | . . 2 . . . 2 Extermination 1 | . . . . . . 1 Reinforcement 10 | . 1 . 1 . 2 6 Assault . | . . . . . . . Garrison 1 | . . . . . . 1 Intercept . | . . . . . . . Searches Triggered . | . . . . . . . Construction Impeded 3 | . . . 1 . . 2 Haulers Reinforced 1 | . . . . . . 1 Active Scanning Responses . | . . . . . . . Cargo Convoy Interrupts 1 | . . . . . . 1 Stealth | -11 -10 -9 -8 -7 -7 -6 --------- Run | Yrd Mat Mat Mat Fac DSF Fac Distress Signals 2 | . . . 1 . . 1 Communications Jammed . | . . . . . . . Distress Signals . | . . . . . . . Times Spotted 73 | . 6 12 9 . 7 39 Peak Tracking Total 12 | . 3 5 3 . 3 12 Tactical Retreats 2 | . 1 . . . . 1 Traps | -11 -10 -9 -8 -7 -7 -6 ------- Run | Yrd Mat Mat Mat Fac DSF Fac Traps Triggered 4 | . 1 . 1 . 1 1 Indirectly . | . . . . . . . Trap Hack Attempts . | . . . . . . . Triggered . | . . . . . . . Disarmed . | . . . . . . . Reprogrammed . | . . . . . . . Reused . | . . . . . . . Traps Extracted . | . . . . . . . Installed . | . . . . . . . Triggered . | . . . . . . . Machines | -11 -10 -9 -8 -7 -7 -6 ---------- Run | Yrd Mat Mat Mat Fac DSF Fac Machines Disabled 10 | . . . . . . 10 Max in Single Turn 5 | . . . . . . 5 Machines Repaired . | . . . . . . . Machines Dismantled . | . . . . . . . Machines Sabotaged . | . . . . . . . Overloaded Fab Kills . | . . . . . . . Hacking | -11 -10 -9 -8 -7 -7 -6 --------- Run | Yrd Mat Mat Mat Fac DSF Fac Machines Accessed 10 | . 3 2 2 1 . 2 Terminals 8 | . 3 1 2 1 . 1 Fabricators . | . . . . . . . Repair Stations . | . . . . . . . Recycling Units . | . . . . . . . Scanalyzers 2 | . . 1 . . . 1 Garrison Access . | . . . . . . . Total Hacks 29 | . 6 9 7 2 . 5 Successful 9 | . . 6 1 1 . 1 Failed 19 | . 6 2 6 1 . 4 Catastrophic 4 | . 1 1 2 . . . Database Lockouts 1 | . . 1 . . . . Manual 15 | . 4 3 6 . . 2 Terminals 20 | . 6 3 7 2 . 2 Fabricators . | . . . . . . . Repair Stations . | . . . . . . . Recycling Units . | . . . . . . . Scanalyzers 9 | . . 6 . . . 3 Garrison Access . | . . . . . . . Terminal Hacks 3 | . . 1 1 1 . . Open DSF 1 | . . . . 1 . . Unreport Threat 1 | . . . 1 . . . Zone Layout 1 | . . 1 . . . . Fabricator Hacks . | . . . . . . . Repair Station Hacks . | . . . . . . . Recycling Unit Hacks . | . . . . . . . Scanalyzer 5 | . . 4 . . . 1 Retrieve Study 5 | . . 4 . . . 1 Garrison Access Hacks . | . . . . . . . Unauthorized Hacks 1 | . . 1 . . . . Terminals . | . . . . . . . Fabricators . | . . . . . . . Repair Stations . | . . . . . . . Recycling Units . | . . . . . . . Scanalyzers 1 | . . 1 . . . . Extract 1 | . . 1 . . . . Garrison Access . | . . . . . . . Data Cores Recovered . | . . . . . . . Used . | . . . . . . . Hacking Detections 8 | . 3 1 2 . . 2 Full Trace Events 3 | . 1 1 . . . 1 Feedback Events . | . . . . . . . Feedback Blocked . | . . . . . . . Robot Schematics Acquired . | . . . . . . . Robots Built . | . . . . . . . Authchips . | . . . . . . . Time . | . . . . . . . Total Robot Build Rating . | . . . . . . . Part Schematics Acquired 9 | . . 9 . . . . Parts Built . | . . . . . . . Authchips . | . . . . . . . Time . | . . . . . . . Total Part Build Rating . | . . . . . . . Part Studies Acquired 4 | . . 3 . . . 1 Parts Repaired . | . . . . . . . Time . | . . . . . . . Parts Recycled . | . . . . . . . Recycled Matter . | . . . . . . . Retrieved Matter . | . . . . . . . Retrieved Components . | . . . . . . . Parts Scanalyzed . | . . . . . . . Part Schematics Acquired . | . . . . . . . Parts Damaged . | . . . . . . . Bothacking | -11 -10 -9 -8 -7 -7 -6 ------------ Run | Yrd Mat Mat Mat Fac DSF Fac Used RIF Installer . | . . . . . . . Robots Hacked . | . . . . . . . Non-combat . | . . . . . . . Combat . | . . . . . . . Robot Hacks Applied . | . . . . . . . Relay Couplers Released . | . . . . . . . Fabnet Peak Effective % . | . . . . . . . Robots Rewired . | . . . . . . . Allies Hacked . | . . . . . . . Hacks Repelled . | . . . . . . . Allies | -11 -10 -9 -8 -7 -7 -6 -------- Run | Yrd Mat Mat Mat Fac DSF Fac Total Allies . | . . . . . . . Largest Group . | . . . . . . . Highest-Rated Group . | . . . . . . . Highest-Rated Ally . | . . . . . . . Initial Warlord ECA Mod 9 | . . . . . . 9 Total Orders . | . . . . . . . Ally Attacks . | . . . . . . . Total Damage . | . . . . . . . Kills . | . . . . . . . Allies Corrupted . | . . . . . . . Allies Melted . | . . . . . . . Intel | -11 -10 -9 -8 -7 -7 -6 ------- Run | Yrd Mat Mat Mat Fac DSF Fac Active Infowar (turns) . | . . . . . . . Robot Analysis Total . | . . . . . . . Derelict Logs Recovered . | . . . . . . . Drone Launches . | . . . . . . . Drone Recoveries . | . . . . . . . Exploration | -11 -10 -9 -8 -7 -7 -6 ------------- Run | Yrd Mat Mat Mat Fac DSF Fac Turns Passed 2157 | 129 226 284 460 11 210 837 Spaces Moved 1248 | 54 175 193 356 3 80 387 Core 17 | 16 . . . . . 1 Treads . | . . . . . . . Legs 463 | . . . . 3 80 380 Wheels 768 | 38 175 193 356 . . 6 Hover . | . . . . . . . Flight . | . . . . . . . Fastest Speed 50 | 50 80 85 85 182 180 100 Average Speed 119 | 72 104 88 91 182 181 161 Slowest Speed 850 | 100 110 110 115 182 183 850 Overloaded Moves . | . . . . . . . Propulsion Burnouts . | . . . . . . . Robots Hopped . | . . . . . . . Potential Cave-ins . | . . . . . . . Cave-ins Triggered . | . . . . . . . Exploration Rate (%) 32 | 4 37 21 32 . 85 14 Regions Visited 6 Branch Regions . Pre-discovered Areas . | . . . . . . . Known Exits Taken 1 | . . . . 1 . . Unknown Exits Taken 4 | 1 1 1 1 . . . Scrap Searched . | . . . . . . . Spaces Dug . | . . . . . . . Terrain Destroyed 150 | . . . 35 . 38 77 Melee . | . . . . . . . Projectile 8 | . . . . . 3 5 AOE 142 | . . . 35 . 35 72 Terrain Rammed . | . . . . . . . Walls Destroyed . | . . . . . . . Machines Disabled . | . . . . . . . Actions | -11 -10 -9 -8 -7 -7 -6 --------- Run | Yrd Mat Mat Mat Fac DSF Fac Total 1656 | 117 200 261 459 10 114 495 Wait 141 | 33 15 13 68 . . 12 Move 1242 | 53 174 192 355 2 79 387 Hop . | . . . . . . . Pick Up 60 | 12 1 15 10 . 10 12 Fast Attach 3 | 1 1 . . . . 1 Attach 41 | 5 . 5 4 6 7 14 Detach 2 | . . . . 2 . . Swap 18 | . . 4 3 . 3 8 Drop 26 | . . 8 3 . 2 13 Fire 121 | 13 9 24 16 . 13 46 Melee . | . . . . . . . Ram . | . . . . . . . Kick 2 | . . . . . . 2 Crush . | . . . . . . . Escape Stasis . | . . . . . . . Rewire . | . . . . . . . Trap . | . . . . . . . Miscellaneous . | . . . . . . . Route ------- -11/Scrapyard -10/Materials -9/Materials -8/Materials -7/Factory -7/DSF -6/Factory History --------- Turn | Location | Event 28 | -11/Scrapyard | Discovered new exit (range 15) 130 | -11/Scrapyard | Entered Materials 293 | -10/Materials | Discovered new exit (range 8) 313 | -10/Materials | Build established: Mutant 356 | -10/Materials | Entered another Materials area 356 | -9/Materials | Evolved 2 slots: Propulsion x2 432 | -9/Materials | Central database locked down 616 | -9/Materials | Discovered new exit (range 13) 640 | -9/Materials | Entered another Materials area 640 | -8/Materials | Evolved 2 slots: Utility x1, Weapon x1 1081 | -8/Materials | Discovered new exit (range 16) 1100 | -8/Materials | Entered Factory 1100 | -7/Factory | Evolved 2 slots: Utility x1, Weapon x1 1111 | -7/Factory | Identified exit to DSF 1111 | -7/Factory | Entered DSF 1129 | -7/DSF | Lost 3 parts (2n1w) 1179 | -7/DSF | Additional patrols routed to DSF 1289 | -7/DSF | Sterilization system engaged 1297 | -7/DSF | Discovered new exit (range 14) 1309 | -7/DSF | Ambient heat levels rising (+10) 1321 | -7/DSF | Entered Factory 1321 | -6/Factory | Evolved 2 slots: Power x1, Propulsion x1 1400 | -6/Factory | Build established: Tank 2106 | -6/Factory | Garrison activated, responded to threat 2139 | -6/Factory | Cargo convoy interrupted 2154 | -6/Factory | Core integrity fell below 50% 2157 | -6/Factory | Core integrity fell below 20% 2158 | -6/Factory | Destroyed by X-72 Disruptor with Improved Arc Projector Last Messages --------------- 02152_ Wheel+ destroyed. 02152_ Penetrated by Slug. 02152_ Coil Gun+ destroyed. 02152_ K-01 Serf collects debris. 02152_ VSS Leg destroyed. 02152_ Coil Gun+ destroyed. 02153_ K-01 Serf collects debris. 02154_ R-10 Processor collects Terrain Scan Processor. 02154_ VSS Leg destroyed. 02155_ Slug penetrates X-72 Disruptor. 02155_ Penetrated by Slug. 02155_ Slug penetrates G-50 Soldier. 02156_ K-01 Serf collects debris. 02156_ M-28 Smith repairs R-10 Processor Hpw. Tractor Beam. 02157_ System corrupted: Heat flow error (+233). 02157_ K-01 Serf collects debris. 02158_ Penetrated by Slug. 02158_ M-28 Smith repairs U-05 Engineer Wheel. Map ----- +----------------------------------------------------+ | ?????????????????????????????????????????????????? | | ?????????????????????????????????????????????????? | | ?????????????????????????????????????????????????? | | ?????????????????????????????????????????????????? | | ?????????????????????????????????????????????????? | | ?????????????????????????????????????????????????? | | ?????????????????????????????????????????????????? | | ?????????????????????????????????????????????????? | | ?????????????????????????????????????????????????? | | ?????????????????????????????????????????????????? | | ??????????????????????????? ?????????????????????? | | ?????????????????????????? ???????????????????? | | ?????????????????????????? "???????????????????? | | ?????????????????????????? """ "???????????????? | | ?????????????????????????? """ """ ????????????? | | ?????????????????????????? ???????????? | | ?????????????????????????? ???????????? | | ?????????????????????????? ???????????? | | ?????????????????????????# ?????????????? | | ???????????????????????###= = ??????????????? | | ?????????????????????### !%!= #??###??????????? | | ?????????????????????? !*%!# ?????????? | | ??????????????????????# = ? ??????????? | | ??????????????????????# =%g # ??????????? | | ????????????????####?## !!!% """???????????? | | ????????????????# # ## @ %! A #???????????????? | | ?????????????????# g #???????????????? | | ????????????######;;;; = i #???????????????? | | ????????????# * * | #???????????????? | | ????????????# * R% #???????????????? | | ????????????# * ! #p #???????????????? | | ????????????# !%= # #???????????????? | | ????????????# p|xxx# #???????????????? | | ????????????# !hh %/% #???????????????? | | ????????????# xu # % k ##########??????? | | ????????????# # # ??????? | | ????????????# % # # ?????? | | ????????????# k # m # ?????? | | ????????????# m # # ?????? | | ????????????# # k # ????? | | ??????????#########/""##"# R # ????? | | ??????????# # # ???? | | ??????????# ] + /= ???? | | ??????????# # # #??? | | ??????????# # # = #??? | | ??????????# # %! #??? | | ??????????# # ""## ????? | | ??????????################% ????? | | ????????????############## ?????? | | ????????????# #% ?????? | +----------------------------------------------------+ Best States ------------- Heat Dissipation 51 Energy Generation 29 Energy Capacity 450 Matter Stores 300 Matter Capacity 300 Sight Range 16 Terrain Scan Density 10 Armor Coverage 375 Resistance: KI 20 Evasion (%) 55 Offensive Hacking 20 Item Schematics ----------------- Beam Rifle | -9/Materials | Extracted Huge Storage Unit | -9/Materials | Extracted EM Pulse Gun | -9/Materials | Extracted Terrain Scan Processor | -9/Materials | Extracted Com. Wheel | -9/Materials | Extracted Wheel | -9/Materials | Extracted Targeting Computer | -9/Materials | Extracted Hvy. Assault Rifle | -9/Materials | Extracted Imp. Aluminum Leg | -9/Materials | Extracted Robot Schematics ------------------ None Fabricated ------------ Nothing Repaired ---------- Nothing Studied --------- Wheel | -9/Materials | Hacked Assault Rifle | -9/Materials | Hacked Med. Laser | -9/Materials | Hacked Coil Gun | -6/Factory | Hacked Alien Tech Used ----------------- None Achievements -------------- None Challenges ------------ None Game ------ Seed ShockCobblerGravjet Manual? 0 Play Time 00:29:53 Cumulative 127.9 hours Start 2026.01.14 @ 18:44:03 End 2026.01.14 @ 19:16:21 Sessions 1 Manual Loads 0 Difficulty Rogue Special Mode None Game No. 184 Rogue 184 Adventurer 0 Explorer 0 Win Type - Total 1 Types 1/0/0/0/0/0/0/0/0/0 Lore% 63 Gallery% 57 Achievement% 42 Wizard Run 0 Options --------- Layout 2 ASCII 0 Keyboard 0 Movement Mouse Keybinds 0 Fullscreen 1 Font 16/SmallcapsGlow Map View 25x24 Zoom Use 98% Tactical HUD 1 Map Filters NONE Filters NONE Steam SD RUN: 536030a2-04ba-4266-8e32-a04d0327e793